[Event "Live Chess"]
[Site "Chess.com"]
[Date "2023.05.21"]
[Round "-"]
[White "LL220284LL"]
[Black "fretle"]
[Result "1-0"]
[WhiteElo "2236"]
[BlackElo "1801"]
[TimeControl "300"]
[EndTime "8:33:06 PDT"]
[Termination "LL220284LL won by resignation"]

1. Nf3 {[%clk 0:04:59.3]} 1... Nf6 {[%clk 0:04:56.8]} 2. b3 {[%clk 0:04:58.1]}
2... d5 {[%clk 0:04:54.9]} 3. Bb2 {[%clk 0:04:57.4]} 3... c6 {[%clk 0:04:52.7]}
4. e3 {[%clk 0:04:57]} 4... Bg4 {[%clk 0:04:49.6]} 5. Be2 {[%clk 0:04:56.3]}
5... e6 {[%clk 0:04:47.7]} 6. O-O {[%clk 0:04:55.4]} 6... Be7 {[%clk 0:04:45.1]}
7. c4 {[%clk 0:04:54.8]} 7... Nbd7 {[%clk 0:04:43.4]} 8. Nc3 {[%clk 0:04:54.2]}
8... O-O {[%clk 0:04:39.9]} 9. h3 {[%clk 0:04:53.8]} 9... Bxf3 {[%clk
0:04:36.5]} 10. Bxf3 {[%clk 0:04:52.9]} 10... Ne5 {[%clk 0:04:29.9]} 11. Be2
{[%clk 0:04:51.4]} 11... Nfd7 {[%clk 0:04:15]} 12. d4 {[%clk 0:04:49.2]} 12...
Ng6 {[%clk 0:04:11.6]} 13. Bd3 {[%clk 0:04:47.2]} 13... f5 {[%clk 0:04:06.4]}
14. Ne2 {[%clk 0:04:44.8]} 14... Nf6 {[%clk 0:04:04.5]} 15. Qc1 {[%clk
0:04:38.8]} 15... Ne4 {[%clk 0:03:56.5]} 16. Ba3 {[%clk 0:04:34.7]} 16... e5
{[%clk 0:02:59.2]} 17. Bxe7 {[%clk 0:04:29.7]} 17... Qxe7 {[%clk 0:02:56.9]} 18.
cxd5 {[%clk 0:04:29.2]} 18... cxd5 {[%clk 0:02:55.9]} 19. dxe5 {[%clk
0:04:27.7]} 19... Nxe5 {[%clk 0:02:54.3]} 20. Bxe4 {[%clk 0:04:21.1]} 20... dxe4
{[%clk 0:02:47.9]} 21. Qb2 {[%clk 0:04:16]} 21... Rad8 {[%clk 0:02:30.3]} 22.
Rad1 {[%clk 0:04:14.4]} 22... Nd3 {[%clk 0:02:17.1]} 23. Qc3 {[%clk 0:04:09.9]}
23... Kh8 {[%clk 0:02:11.8]} 24. Nd4 {[%clk 0:04:06.2]} 24... f4 {[%clk
0:02:01.3]} 25. exf4 {[%clk 0:04:01.9]} 25... Nxf4 {[%clk 0:01:52.3]} 26. Rfe1
{[%clk 0:03:50.8]} 26... Qg5 {[%clk 0:01:50.3]} 27. Qg3 {[%clk 0:03:47.1]} 27...
Qc5 {[%clk 0:01:35.4]} 28. Rxe4 {[%clk 0:03:38.3]} 28... Rxd4 {[%clk 0:01:29]}
29. Rdxd4 {[%clk 0:03:37.3]} 29... Qxd4 {[%clk 0:01:24.2]} 30. Rxd4 {[%clk
0:03:36.3]} 30... Ne2+ {[%clk 0:01:23.2]} 31. Kh2 {[%clk 0:03:35.7]} 31... Nxg3
{[%clk 0:01:22.4]} 32. Kxg3 {[%clk 0:03:35.6]} 32... Kg8 {[%clk 0:01:17.1]} 33.
Rd7 {[%clk 0:03:34.7]} 33... Rb8 {[%clk 0:01:14.6]} 34. f4 {[%clk 0:03:32.2]}
34... h6 {[%clk 0:01:13.5]} 35. Kh4 {[%clk 0:03:30.2]} 35... Kh7 {[%clk
0:01:12.8]} 36. g4 {[%clk 0:03:29.8]} 36... Kg6 {[%clk 0:01:10.8]} 37. f5+
{[%clk 0:03:28.7]} 37... Kf6 {[%clk 0:01:09.5]} 38. Kg3 {[%clk 0:03:27.7]} 38...
a6 {[%clk 0:01:07.9]} 39. Kf4 {[%clk 0:03:26.6]} 39... b5 {[%clk 0:01:04.9]} 40.
h4 {[%clk 0:03:26]} 40... g5+ {[%clk 0:00:52.1]} 41. fxg6 {[%clk 0:03:25.1]}
41... Kxg6 {[%clk 0:00:50.8]} 42. Rd6+ {[%clk 0:03:24.5]} 42... Kg7 {[%clk
0:00:48.9]} 43. Rxa6 {[%clk 0:03:24.1]} 43... Rb7 {[%clk 0:00:44.6]} 44. g5
{[%clk 0:03:20.1]} 44... hxg5+ {[%clk 0:00:41.9]} 45. Kxg5 {[%clk 0:03:20]}
45... b4 {[%clk 0:00:37.6]} 46. Ra5 {[%clk 0:03:16.6]} 46... Kh7 {[%clk
0:00:35.1]} 47. h5 {[%clk 0:03:16]} 47... Kg7 {[%clk 0:00:34.2]} 48. Kf4 {[%clk
0:03:14.3]} 48... Rb6 {[%clk 0:00:29.9]} 49. Ke4 {[%clk 0:03:13.5]} 49... Kh6
{[%clk 0:00:28.9]} 50. Kd4 {[%clk 0:03:12.5]} 1-0

[Event "Live Chess"]
[Site "Chess.com"]
[Date "2023.05.21"]
[Round "-"]
[White "BJAW87"]
[Black "Mikhail_Golubev"]
[Result "0-1"]
[WhiteElo "1442"]
[BlackElo "2416"]
[TimeControl "300"]
[EndTime "8:33:07 PDT"]
[Termination "Mikhail_Golubev won by checkmate"]

1. e4 {[%clk 0:04:59]} 1... c5 {[%clk 0:04:50.9]} 2. c3 {[%clk 0:04:56.5]} 2...
d6 {[%clk 0:04:45.9]} 3. d4 {[%clk 0:04:54.9]} 3... Nf6 {[%clk 0:04:44.7]} 4.
Bd3 {[%clk 0:04:45.7]} 4... g6 {[%clk 0:04:39.2]} 5. Nf3 {[%clk 0:04:41.6]} 5...
Bg7 {[%clk 0:04:38.4]} 6. e5 {[%clk 0:04:38.1]} 6... dxe5 {[%clk 0:04:12.1]} 7.
Nxe5 {[%clk 0:04:38]} 7... O-O {[%clk 0:04:06.7]} 8. dxc5 {[%clk 0:04:23.9]}
8... Qc7 {[%clk 0:04:00.9]} 9. Bf4 {[%clk 0:03:48.2]} 9... Nh5 {[%clk
0:03:54.2]} 10. Nxg6 {[%clk 0:03:15.7]} 10... Nxf4 {[%clk 0:03:50.4]} 11. Nxf8
{[%clk 0:03:11.8]} 11... Nxg2+ {[%clk 0:03:37.9]} 12. Kf1 {[%clk 0:03:04.1]}
12... Bh3 {[%clk 0:03:14.8]} 13. Kg1 {[%clk 0:03:02.1]} 13... Kxf8 {[%clk
0:03:09.2]} 14. Qh5 {[%clk 0:02:31]} 14... Nf4 {[%clk 0:03:04.4]} 15. Qxh7
{[%clk 0:02:26.6]} 15... Qc6 {[%clk 0:02:36.5]} 16. Qe4 {[%clk 0:02:14.3]} 16...
Qxe4 {[%clk 0:02:33.4]} 17. Bxe4 {[%clk 0:02:13.6]} 17... Ne2# {[%clk
0:02:32.4]} 0-1

[Event "Live Chess"]
[Site "Chess.com"]
[Date "2023.05.21"]
[Round "-"]
[White "FierceFighter2000"]
[Black "MartinWalker4"]
[Result "1-0"]
[WhiteElo "2054"]
[BlackElo "2077"]
[TimeControl "300"]
[EndTime "8:33:10 PDT"]
[Termination "FierceFighter2000 won on time"]

1. e4 {[%clk 0:04:58.8]} 1... Nf6 {[%clk 0:04:57.7]} 2. e5 {[%clk 0:04:56.4]}
2... Nd5 {[%clk 0:04:56.2]} 3. Nc3 {[%clk 0:04:56.1]} 3... Nxc3 {[%clk
0:04:54.3]} 4. dxc3 {[%clk 0:04:56]} 4... d5 {[%clk 0:04:53.2]} 5. exd6 {[%clk
0:04:52.9]} 5... cxd6 {[%clk 0:04:47.5]} 6. Nf3 {[%clk 0:04:51.3]} 6... e6
{[%clk 0:04:45.4]} 7. Bd3 {[%clk 0:04:50.3]} 7... Be7 {[%clk 0:04:42.3]} 8. O-O
{[%clk 0:04:49.2]} 8... Nd7 {[%clk 0:04:40.4]} 9. Bf4 {[%clk 0:04:47.6]} 9...
Nf6 {[%clk 0:04:37.1]} 10. h3 {[%clk 0:04:45.2]} 10... O-O {[%clk 0:04:34.5]}
11. Re1 {[%clk 0:04:42.5]} 11... Qb6 {[%clk 0:04:32.2]} 12. Rb1 {[%clk
0:04:35.2]} 12... Bd7 {[%clk 0:04:20.2]} 13. Qd2 {[%clk 0:04:23.1]} 13... Bc6
{[%clk 0:04:14.5]} 14. Nd4 {[%clk 0:04:17.3]} 14... Rad8 {[%clk 0:03:46]} 15.
Nxc6 {[%clk 0:03:56.8]} 15... bxc6 {[%clk 0:03:43.8]} 16. Bg3 {[%clk 0:03:44.4]}
16... c5 {[%clk 0:03:27.1]} 17. b3 {[%clk 0:03:39.9]} 17... Qa5 {[%clk
0:03:25.1]} 18. b4 {[%clk 0:03:13.5]} 18... cxb4 {[%clk 0:03:12.7]} 19. cxb4
{[%clk 0:03:13.4]} 19... Qa3 {[%clk 0:02:50.1]} 20. c4 {[%clk 0:02:49.4]} 20...
Nh5 {[%clk 0:02:15.5]} 21. Bh2 {[%clk 0:02:36.9]} 21... Bf6 {[%clk 0:02:12.4]}
22. Rb3 {[%clk 0:02:31]} 22... Qa4 {[%clk 0:02:10.3]} 23. Bc2 {[%clk 0:02:13.9]}
23... g6 {[%clk 0:01:49.1]} 24. a3 {[%clk 0:01:48.5]} 24... Qc6 {[%clk
0:01:14.8]} 25. Rd3 {[%clk 0:01:18.9]} 25... Qxc4 {[%clk 0:00:47.8]} 26. Bb3
{[%clk 0:01:18.2]} 26... Qc6 {[%clk 0:00:33.3]} 27. Rxd6 {[%clk 0:01:14.3]}
27... Rxd6 {[%clk 0:00:22.7]} 28. Qxd6 {[%clk 0:01:13]} 28... Qxd6 {[%clk
0:00:17.2]} 29. Bxd6 {[%clk 0:01:12.9]} 29... Rd8 {[%clk 0:00:16.4]} 30. Bc5
{[%clk 0:01:11.3]} 30... Rd7 {[%clk 0:00:13.9]} 31. Rd1 {[%clk 0:00:59.4]} 31...
Rc7 {[%clk 0:00:09.3]} 32. Ba4 {[%clk 0:00:43.1]} 32... Be7 {[%clk 0:00:06.5]}
33. Rd7 {[%clk 0:00:40]} 33... Rxd7 {[%clk 0:00:04.8]} 34. Bxd7 {[%clk
0:00:39.9]} 1-0

[Event "Live Chess"]
[Site "Chess.com"]
[Date "2023.05.21"]
[Round "-"]
[White "manthanit"]
[Black "slava_ukr"]
[Result "0-1"]
[WhiteElo "1105"]
[BlackElo "2346"]
[TimeControl "300"]
[EndTime "8:33:10 PDT"]
[Termination "slava_ukr won by checkmate"]

1. e4 {[%clk 0:04:58.4]} 1... e5 {[%clk 0:04:58.6]} 2. Nf3 {[%clk 0:04:53.3]}
2... Nc6 {[%clk 0:04:57.8]} 3. Bc4 {[%clk 0:04:51.8]} 3... Be7 {[%clk 0:04:55]}
4. h3 {[%clk 0:04:46.5]} 4... Nf6 {[%clk 0:04:53.2]} 5. d3 {[%clk 0:04:45.5]}
5... O-O {[%clk 0:04:50.9]} 6. Nc3 {[%clk 0:04:44.3]} 6... d6 {[%clk 0:04:48.1]}
7. Nd5 {[%clk 0:04:43.1]} 7... Na5 {[%clk 0:04:38.4]} 8. Bg5 {[%clk 0:04:36.3]}
8... Nxc4 {[%clk 0:04:29.2]} 9. dxc4 {[%clk 0:04:34.5]} 9... Nxd5 {[%clk
0:04:27.9]} 10. Bxe7 {[%clk 0:04:32]} 10... Nxe7 {[%clk 0:04:26.6]} 11. O-O
{[%clk 0:04:17.4]} 11... f5 {[%clk 0:04:25.1]} 12. exf5 {[%clk 0:04:15.7]} 12...
Bxf5 {[%clk 0:04:24]} 13. Qd2 {[%clk 0:04:12.1]} 13... Bxh3 {[%clk 0:04:19.2]}
14. gxh3 {[%clk 0:04:09.7]} 14... Rxf3 {[%clk 0:04:17.5]} 15. Kh2 {[%clk
0:03:58.7]} 15... Qd7 {[%clk 0:04:15.1]} 16. Rh1 {[%clk 0:03:17.7]} 16... Raf8
{[%clk 0:04:04.7]} 17. c5 {[%clk 0:03:15.2]} 17... Rxf2+ {[%clk 0:04:02.8]} 18.
Qxf2 {[%clk 0:03:14.4]} 18... Rxf2+ {[%clk 0:04:01.3]} 19. Kg1 {[%clk
0:03:13.7]} 19... Qf5 {[%clk 0:03:57.8]} 20. Rh2 {[%clk 0:03:07]} 20... Rxh2
{[%clk 0:03:55.4]} 21. Kxh2 {[%clk 0:03:06.1]} 21... Qf2+ {[%clk 0:03:54.1]} 22.
Kh1 {[%clk 0:03:04.1]} 22... Nf5 {[%clk 0:03:53.3]} 23. cxd6 {[%clk 0:03:03]}
23... Ng3# {[%clk 0:03:51.8]} 0-1

[Event "Live Chess"]
[Site "Chess.com"]
[Date "2023.05.21"]
[Round "-"]
[White "domrobson"]
[Black "SupremeTactician"]
[Result "1-0"]
[WhiteElo "1806"]
[BlackElo "2175"]
[TimeControl "300"]
[EndTime "8:33:11 PDT"]
[Termination "domrobson won by resignation"]

1. d4 {[%clk 0:04:58.6]} 1... Nf6 {[%clk 0:04:59.4]} 2. c4 {[%clk 0:04:57.7]}
2... e6 {[%clk 0:04:59.3]} 3. Nf3 {[%clk 0:04:53]} 3... d5 {[%clk 0:04:59.2]} 4.
Nc3 {[%clk 0:04:52.1]} 4... Bb4 {[%clk 0:04:57.8]} 5. Bg5 {[%clk 0:04:51.5]}
5... O-O {[%clk 0:04:56.8]} 6. e3 {[%clk 0:04:50.7]} 6... h6 {[%clk 0:04:55.9]}
7. Bxf6 {[%clk 0:04:48.4]} 7... Qxf6 {[%clk 0:04:55.8]} 8. Rc1 {[%clk
0:04:46.2]} 8... c6 {[%clk 0:04:53.2]} 9. a3 {[%clk 0:04:43.1]} 9... Bxc3+
{[%clk 0:04:41.6]} 10. Rxc3 {[%clk 0:04:40]} 10... Nd7 {[%clk 0:04:40.8]} 11.
Bd3 {[%clk 0:04:37.8]} 11... dxc4 {[%clk 0:04:25.7]} 12. Rxc4 {[%clk 0:04:34.3]}
12... Nb6 {[%clk 0:04:25.1]} 13. Rc1 {[%clk 0:04:32.6]} 13... Nd5 {[%clk
0:04:23.3]} 14. O-O {[%clk 0:04:30.8]} 14... Bd7 {[%clk 0:04:00.7]} 15. Ne5
{[%clk 0:04:28.2]} 15... Nb6 {[%clk 0:04:00]} 16. Bb1 {[%clk 0:04:21.5]} 16...
Rad8 {[%clk 0:03:46.8]} 17. Qc2 {[%clk 0:04:19.8]} 17... g6 {[%clk 0:03:46]} 18.
f4 {[%clk 0:04:15.9]} 18... Bc8 {[%clk 0:03:41.9]} 19. Rf3 {[%clk 0:04:14.2]}
19... Nd5 {[%clk 0:03:41.1]} 20. Rg3 {[%clk 0:04:12]} 20... Qf5 {[%clk
0:03:35.6]} 21. Qe2 {[%clk 0:04:04.5]} 21... Nxf4 {[%clk 0:03:23.6]} 22. exf4
{[%clk 0:03:57.6]} 22... Qxf4 {[%clk 0:03:23.5]} 23. Rf1 {[%clk 0:03:46.2]}
23... Qxd4+ {[%clk 0:02:43.2]} 24. Kh1 {[%clk 0:03:36.8]} 24... g5 {[%clk
0:02:28.4]} 25. Rd3 {[%clk 0:03:18]} 25... Qh4 {[%clk 0:02:12.7]} 26. Rxd8
{[%clk 0:03:13.9]} 26... Rxd8 {[%clk 0:02:11.6]} 27. Nxf7 {[%clk 0:03:05]} 27...
Rf8 {[%clk 0:02:07.2]} 28. Ne5 {[%clk 0:02:58.6]} 28... Rxf1+ {[%clk 0:02:04.3]}
29. Qxf1 {[%clk 0:02:55]} 29... Qf4 {[%clk 0:02:02]} 30. Qxf4 {[%clk 0:02:52.1]}
30... gxf4 {[%clk 0:02:01.9]} 31. Kg1 {[%clk 0:02:51.4]} 31... Kg7 {[%clk
0:01:59.9]} 32. Kf2 {[%clk 0:02:51]} 32... Kf6 {[%clk 0:01:59.5]} 33. Ng4+
{[%clk 0:02:46.2]} 33... Kg5 {[%clk 0:01:58.9]} 34. h3 {[%clk 0:02:40.6]} 34...
h5 {[%clk 0:01:57.8]} 35. Ne5 {[%clk 0:02:39.3]} 35... Kf6 {[%clk 0:01:57.4]}
36. Nd3 {[%clk 0:02:35.3]} 36... e5 {[%clk 0:01:56.2]} 37. Kf3 {[%clk 0:02:33]}
37... Bf5 {[%clk 0:01:54.8]} 38. Ke2 {[%clk 0:02:26.5]} 38... a5 {[%clk
0:01:31.1]} 39. Ba2 {[%clk 0:02:24.1]} 39... f3+ {[%clk 0:01:24.7]} 40. gxf3
{[%clk 0:02:22.4]} 40... Bxh3 {[%clk 0:01:24.2]} 41. Nf2 {[%clk 0:02:16.5]}
41... Bf5 {[%clk 0:01:22.5]} 42. Kf1 {[%clk 0:02:12.4]} 42... b5 {[%clk
0:01:19.3]} 43. Kg2 {[%clk 0:02:10.9]} 43... b4 {[%clk 0:01:18.3]} 44. axb4
{[%clk 0:02:09]} 44... axb4 {[%clk 0:01:17.6]} 45. Kg3 {[%clk 0:02:06.7]} 45...
Bc2 {[%clk 0:01:13]} 46. Bc4 {[%clk 0:02:02.6]} 46... Kg5 {[%clk 0:01:07.6]} 47.
Nh3+ {[%clk 0:01:53.4]} 47... Kf6 {[%clk 0:01:06.6]} 48. Kh4 {[%clk 0:01:49.4]}
48... Bd1 {[%clk 0:01:05.6]} 49. Ng1 {[%clk 0:01:45.8]} 49... Kf5 {[%clk
0:01:03.2]} 50. Be2 {[%clk 0:01:34.9]} 50... Bxe2 {[%clk 0:00:43.7]} 51. Nxe2
{[%clk 0:01:33.1]} 51... e4 {[%clk 0:00:43.6]} 52. f4 {[%clk 0:01:04.9]} 52...
c5 {[%clk 0:00:41.8]} 53. Kxh5 {[%clk 0:01:01.7]} 53... c4 {[%clk 0:00:41.1]}
54. Kh4 {[%clk 0:00:59.1]} 54... c3 {[%clk 0:00:20.5]} 55. bxc3 {[%clk
0:00:57.2]} 55... bxc3 {[%clk 0:00:19.3]} 56. Kg3 {[%clk 0:00:52.5]} 56... c2
{[%clk 0:00:16.5]} 57. Nc1 {[%clk 0:00:45.7]} 57... Ke6 {[%clk 0:00:11.9]} 58.
Kg4 {[%clk 0:00:43.5]} 58... Kd5 {[%clk 0:00:11.1]} 59. f5 {[%clk 0:00:42.1]}
59... Kd4 {[%clk 0:00:09.5]} 60. f6 {[%clk 0:00:40.7]} 60... Kc3 {[%clk
0:00:09]} 61. f7 {[%clk 0:00:39.2]} 61... Kd2 {[%clk 0:00:08.6]} 62. Nb3+ {[%clk
0:00:37.8]} 62... Kd1 {[%clk 0:00:08.5]} 63. f8=Q {[%clk 0:00:36.3]} 63... c1=Q
{[%clk 0:00:08.4]} 64. Qf1+ {[%clk 0:00:34.3]} 1-0

[Event "Live Chess"]
[Site "Chess.com"]
[Date "2023.05.21"]
[Round "-"]
[White "JanMur7"]
[Black "Alfiedog12"]
[Result "1-0"]
[WhiteElo "1970"]
[BlackElo "870"]
[TimeControl "300"]
[EndTime "8:33:14 PDT"]
[Termination "JanMur7 won by resignation"]

1. e4 {[%clk 0:04:58.9]} 1... c6 {[%clk 0:04:58.7]} 2. d4 {[%clk 0:04:57.8]}
2... d5 {[%clk 0:04:58.3]} 3. Nc3 {[%clk 0:04:57.3]} 3... dxe4 {[%clk
0:04:56.6]} 4. Nxe4 {[%clk 0:04:57.2]} 4... Bf5 {[%clk 0:04:55.5]} 5. Ng3 {[%clk
0:04:56.2]} 5... Bg6 {[%clk 0:04:54.2]} 6. Nf3 {[%clk 0:04:56.1]} 6... Nf6
{[%clk 0:04:52.6]} 7. Bd3 {[%clk 0:04:55.3]} 7... e6 {[%clk 0:04:52]} 8. O-O
{[%clk 0:04:53.8]} 8... Bd6 {[%clk 0:04:43]} 9. c3 {[%clk 0:04:47.7]} 9... Nbd7
{[%clk 0:04:40]} 10. Qc2 {[%clk 0:04:38.6]} 10... Qc7 {[%clk 0:04:36.8]} 11. Ne4
{[%clk 0:04:36.3]} 11... Ng4 {[%clk 0:04:25.7]} 12. h3 {[%clk 0:04:30.1]} 12...
Bh2+ {[%clk 0:04:13.7]} 13. Kh1 {[%clk 0:04:26.4]} 13... Nxf2+ {[%clk
0:03:55.7]} 14. Qxf2 {[%clk 0:04:17.4]} 14... Bg3 {[%clk 0:03:51.4]} 15. Qxg3
{[%clk 0:04:14.9]} 15... Bxe4 {[%clk 0:03:50.3]} 16. Qxc7 {[%clk 0:04:13.6]} 1-0

[Event "Live Chess"]
[Site "Chess.com"]
[Date "2023.05.21"]
[Round "-"]
[White "WilliamofOrange16th"]
[Black "BillythekidFellowes"]
[Result "0-1"]
[WhiteElo "1851"]
[BlackElo "2132"]
[TimeControl "300"]
[EndTime "8:33:28 PDT"]
[Termination "BillythekidFellowes won by resignation"]

1. b3 {[%clk 0:04:56.4]} 1... e5 {[%clk 0:04:58.1]} 2. Bb2 {[%clk 0:04:55.6]}
2... Nc6 {[%clk 0:04:57]} 3. e3 {[%clk 0:04:55.2]} 3... d5 {[%clk 0:04:55.7]} 4.
Bb5 {[%clk 0:04:54.7]} 4... Bd6 {[%clk 0:04:54.4]} 5. f4 {[%clk 0:04:54.1]} 5...
f6 {[%clk 0:04:43.5]} 6. Qh5+ {[%clk 0:04:44.3]} 6... g6 {[%clk 0:04:41.1]} 7.
Qh4 {[%clk 0:04:42.5]} 7... Kf7 {[%clk 0:04:37.9]} 8. Bxc6 {[%clk 0:04:34.1]}
8... bxc6 {[%clk 0:04:34.3]} 9. fxe5 {[%clk 0:04:33.2]} 9... Be7 {[%clk
0:04:30.8]} 10. exf6 {[%clk 0:04:28.9]} 10... Nxf6 {[%clk 0:04:30.7]} 11. Nf3
{[%clk 0:04:12.8]} 11... Rf8 {[%clk 0:04:24.5]} 12. O-O {[%clk 0:04:06.7]} 12...
Kg7 {[%clk 0:04:20.3]} 13. Ng5 {[%clk 0:03:48.9]} 13... h6 {[%clk 0:04:13.7]}
14. Nh3 {[%clk 0:03:37.6]} 14... Bxh3 {[%clk 0:04:12]} 15. Qxh3 {[%clk
0:03:36.5]} 15... Kh7 {[%clk 0:04:10.4]} 16. d3 {[%clk 0:03:33.9]} 16... Nh5
{[%clk 0:04:01.1]} 17. Nd2 {[%clk 0:03:31]} 17... Bg5 {[%clk 0:03:58.1]} 18. Bd4
{[%clk 0:03:23.9]} 18... Qd6 {[%clk 0:03:40]} 19. Nf3 {[%clk 0:03:22.3]} 19...
Bf6 {[%clk 0:03:31.8]} 20. Bxf6 {[%clk 0:03:18.7]} 20... Qxf6 {[%clk 0:03:31.7]}
21. Nd2 {[%clk 0:03:14.8]} 21... Qe7 {[%clk 0:03:28]} 22. e4 {[%clk 0:03:12.3]}
22... Nf4 {[%clk 0:03:25.9]} 23. Qe3 {[%clk 0:03:05.7]} 23... d4 {[%clk
0:03:23.3]} 24. Qe1 {[%clk 0:02:58.8]} 24... Qg5 {[%clk 0:03:21.4]} 25. Rf2
{[%clk 0:02:54.5]} 25... Nh3+ {[%clk 0:03:19.4]} 0-1

[Event "Live Chess"]
[Site "Chess.com"]
[Date "2023.05.21"]
[Round "-"]
[White "CeladonFish"]
[Black "GMHarry-youtube"]
[Result "0-1"]
[WhiteElo "1136"]
[BlackElo "1994"]
[TimeControl "300"]
[EndTime "8:33:30 PDT"]
[Termination "GMHarry-youtube won by checkmate"]

1. d4 {[%clk 0:04:58.7]} 1... Nf6 {[%clk 0:04:58.5]} 2. c4 {[%clk 0:04:57]} 2...
g6 {[%clk 0:04:57.9]} 3. Nc3 {[%clk 0:04:55.4]} 3... d5 {[%clk 0:04:56.2]} 4.
Bf4 {[%clk 0:04:53.9]} 4... Bg7 {[%clk 0:04:49]} 5. Nf3 {[%clk 0:04:51.2]} 5...
O-O {[%clk 0:04:47.1]} 6. e3 {[%clk 0:04:48]} 6... c6 {[%clk 0:04:42.8]} 7. Be2
{[%clk 0:04:46]} 7... dxc4 {[%clk 0:04:41.7]} 8. Bxc4 {[%clk 0:04:44.5]} 8...
Bg4 {[%clk 0:04:37.3]} 9. O-O {[%clk 0:04:40.4]} 9... Nbd7 {[%clk 0:04:34.3]}
10. h3 {[%clk 0:04:38.3]} 10... Bh5 {[%clk 0:04:30]} 11. g4 {[%clk 0:04:32.5]}
11... Nxg4 {[%clk 0:04:28.5]} 12. hxg4 {[%clk 0:04:31.1]} 12... Bxg4 {[%clk
0:04:28.4]} 13. Bg3 {[%clk 0:04:29.7]} 13... Qc8 {[%clk 0:04:25.2]} 14. Be2
{[%clk 0:04:27.9]} 14... Nf6 {[%clk 0:04:23.9]} 15. Ne5 {[%clk 0:04:23.6]} 15...
Bh3 {[%clk 0:04:22.3]} 16. Re1 {[%clk 0:04:21.5]} 16... Nd7 {[%clk 0:04:18.3]}
17. Nxd7 {[%clk 0:04:19.2]} 17... Qxd7 {[%clk 0:04:16.8]} 18. Kh2 {[%clk
0:04:14.7]} 18... h5 {[%clk 0:04:09.4]} 19. Bf1 {[%clk 0:04:06.3]} 19... Bxf1
{[%clk 0:03:57.9]} 20. Rxf1 {[%clk 0:04:05]} 20... f5 {[%clk 0:03:52]} 21. Qb3+
{[%clk 0:03:58.6]} 21... Kh8 {[%clk 0:03:50.3]} 22. Rh1 {[%clk 0:03:49.1]} 22...
f4 {[%clk 0:03:48.2]} 23. exf4 {[%clk 0:03:45.5]} 23... Qg4 {[%clk 0:03:46.2]}
24. Kg2 {[%clk 0:03:42.7]} 24... Rxf4 {[%clk 0:03:43.7]} 25. Na4 {[%clk
0:03:13]} 25... Raf8 {[%clk 0:03:39.4]} 26. Rh4 {[%clk 0:03:05.6]} 26... Rxf2+
{[%clk 0:03:38.1]} 27. Kh1 {[%clk 0:02:55.3]} 27... Rf1+ {[%clk 0:03:31.1]} 28.
Rxf1 {[%clk 0:02:52.7]} 28... Rxf1+ {[%clk 0:03:28.5]} 29. Kg2 {[%clk
0:02:47.4]} 29... Qe2+ {[%clk 0:03:26.9]} 30. Kh3 {[%clk 0:02:42.4]} 30... Rh1+
{[%clk 0:03:25.5]} 31. Bh2 {[%clk 0:02:41.3]} 31... Rxh2+ {[%clk 0:03:14.1]} 32.
Kg3 {[%clk 0:02:39.4]} 32... Qf2# {[%clk 0:03:14]} 0-1

[Event "Live Chess"]
[Site "Chess.com"]
[Date "2023.05.21"]
[Round "-"]
[White "AttackingSnowLeopard"]
[Black "Ian-Morley"]
[Result "1-0"]
[WhiteElo "2166"]
[BlackElo "1103"]
[TimeControl "300"]
[EndTime "8:33:43 PDT"]
[Termination "AttackingSnowLeopard won by resignation"]

1. d4 {[%clk 0:04:58]} 1... d5 {[%clk 0:04:58.5]} 2. c4 {[%clk 0:04:55.9]} 2...
dxc4 {[%clk 0:04:57.3]} 3. Nf3 {[%clk 0:04:53.3]} 3... Nc6 {[%clk 0:04:56.8]} 4.
e3 {[%clk 0:04:52.4]} 4... Bg4 {[%clk 0:04:56.2]} 5. Bxc4 {[%clk 0:04:51.4]}
5... Bxf3 {[%clk 0:04:55.1]} 6. Qxf3 {[%clk 0:04:47.2]} 6... Nf6 {[%clk
0:04:54.7]} 7. O-O {[%clk 0:04:45.7]} 7... e6 {[%clk 0:04:53.2]} 8. Nc3 {[%clk
0:04:44.3]} 8... Be7 {[%clk 0:04:50.8]} 9. Bb5 {[%clk 0:04:43.2]} 9... Nd5
{[%clk 0:04:44.2]} 10. Nxd5 {[%clk 0:04:39.4]} 10... exd5 {[%clk 0:04:43.6]} 11.
Bxc6+ {[%clk 0:04:38.4]} 11... bxc6 {[%clk 0:04:42.6]} 12. Bd2 {[%clk
0:04:37.2]} 12... O-O {[%clk 0:04:41.8]} 13. Bc3 {[%clk 0:04:36.3]} 13... c5
{[%clk 0:04:39.4]} 14. dxc5 {[%clk 0:04:32.5]} 14... Bxc5 {[%clk 0:04:38.3]} 15.
Qg4 {[%clk 0:04:30.9]} 15... g6 {[%clk 0:04:31.7]} 16. Qf4 {[%clk 0:04:28.3]}
16... f5 {[%clk 0:04:29.8]} 17. Qe5 {[%clk 0:04:26.7]} 17... Rf6 {[%clk
0:04:15.7]} 18. Qxf6 {[%clk 0:04:25.2]} 18... Qxf6 {[%clk 0:04:15]} 19. Bxf6
{[%clk 0:04:24.9]} 19... Rb8 {[%clk 0:04:13.5]} 20. Rac1 {[%clk 0:04:24]} 20...
Bd6 {[%clk 0:04:09.6]} 21. Bd4 {[%clk 0:04:22.4]} 21... Rxb2 {[%clk 0:04:08.2]}
22. Bxb2 {[%clk 0:04:21.2]} 1-0